[Event "IMSA Blitz Women 2019"]
[Site "Hengshui"]
[Date "2019.05.17"]
[Round "4.1"]
[White "Stefanova, Antoaneta"]
[Black "Dzagnidze, Nana"]
[Result "1/2-1/2"]
[ECO "D00"]
[WhiteElo "2470"]
[BlackElo "2510"]
[Annotator "ChessBase"]
[PlyCount "78"]
[EventDate "2019.05.17"]
[EventType "blitz"]
[EventCountry "CHN"]
[SourceTitle "playchess.com"]
[Source "ChessBase"]
[SourceQuality "1"]
[TimeControl "180+2"]

1. d4 {[%emt 0:00:00]} d5 {[%emt 0:00:00]} 2. Bf4 {[%emt 0:00:01]} Nf6 {[%emt 0:00:05]} 3. e3 {[%emt 0:00:03]} b6 {[%emt 0:00:19]} 4. Nd2 {[%emt 0:00:12]} Bb7 {[%emt 0:00:03]} 5. Bd3 {[%emt 0:00:03]} e6 {[%emt 0:00:03]} 6. Ngf3 {[%emt 0:00:04]} Bd6 {[%emt 0:00:02]} 7. O-O {[%emt 0:00:09]} Bxf4 {[%emt 0:00:14]} 8. exf4 {[%emt 0:00:01]} O-O {[%emt 0:00:03]} 9. Ne5 {[%emt 0:00:06]} c5 {[%emt 0:00:05]} 10. c3 {[%emt 0:00:01]} Ba6 {[%emt 0:00:33]} 11. Bxa6 {[%emt 0:00:08]} Nxa6 {[%emt 0:00:02]} 12. Qf3 {[%emt 0:00:16]} Rc8 {[%emt 0:00:07]} 13. Qd3 {[%emt 0:00:21]} Nb8 {[%emt 0:00:05]} 14. f5 {[%emt 0:00:06]} exf5 {[%emt 0:00:28]} 15. Qxf5 {[%emt 0:00:01]} cxd4 {[%emt 0:00:10]} 16. cxd4 {[%emt 0:00:01]} Nc6 {[%emt 0:00:01]} 17. Ndf3 {[%emt 0:00:04]} Ne7 {[%emt 0:00:03]} 18. Qd3 {[%emt 0:00:04]} Qc7 {[%emt 0:00:07]} 19. h3 {[%emt 0:00:07]} Ng6 {[%emt 0:00:03]} 20. Nxg6 {[%emt 0:00:09]} hxg6 {[%emt 0:00:02]} 21. Rfe1 {[%emt 0:00:33]} Qc2 {[%emt 0:00:11]} 22. Qb3 {[%emt 0:00:10]} Ne4 23. Rf1 Qxb3 {[%emt 0:00:16]} 24. axb3 {[%emt 0:00:01]} a5 {[%emt 0:00:01]} 25. b4 {[%emt 0:00:01]} axb4 {[%emt 0:00:04]} 26. Ra4 {[%emt 0:00:01]} Rc4 {[%emt 0:00:07]} 27. b3 {[%emt 0:00:01]} b5 {[%emt 0:00:18]} 28. Ra5 {[%emt 0:00:12]} Rc3 {[%emt 0:00:01]} 29. Rxb5 {[%emt 0:00:02]} Rxb3 {[%emt 0:00:01]} 30. Rxd5 {[%emt 0:00:01]} Rb2 {[%emt 0:00:01]} 31. Rb5 {[%emt 0:00:04]} Rd8 {[%emt 0:00:11]} 32. Rb7 {[%emt 0:00:02]} f6 {[%emt 0:00:10]} 33. Re1 {[%emt 0:00:04]} Nd6 {[%emt 0:00:02]} 34. Rb6 {[%emt 0:00:13]} Nf5 {[%emt 0:00:01]} 35. Rd1 {[%emt 0:00:05]} b3 {[%emt 0:00:03]} 36. Rd3 {[%emt 0:00:06]} g5 {[%emt 0:00:03]} 37. Rdxb3 {[%emt 0:00:04]} Rxb3 38. Rxb3 {[%emt 0:00:01]} Nxd4 {[%emt 0:00:02]} 39. Nxd4 {[%emt 0:00:03]} Rxd4 {[%emt 0:00:01]} 1/2-1/2

[Event "IMSA Blitz Women 2019"]
[Site "Hengshui"]
[Date "2019.05.17"]
[Round "4.1"]
[White "Abdumalik, Zhansaya"]
[Black "Ushenina, Anna"]
[Result "0-1"]
[ECO "B12"]
[WhiteElo "2464"]
[BlackElo "2442"]
[Annotator "RC"]
[PlyCount "154"]
[EventDate "2019.05.17"]
[EventType "blitz"]
[EventCountry "CHN"]
[SourceTitle "playchess.com"]
[Source "ChessBase"]
[SourceQuality "1"]
[TimeControl "180+2"]

1. e4 {[%emt 0:00:00]} c6 {[%emt 0:00:00]} 2. d4 {[%emt 0:00:00]} d5 {[%emt 0:00:00]} 3. e5 {[%emt 0:00:00]} c5 {[%emt 0:00:01]} 4. dxc5 {[%emt 0:00:04]} e6 {[%emt 0:00:00]} 5. a3 {[%emt 0:00:08]} Bxc5 {[%emt 0:00:02]} 6. b4 {[%emt 0:00:02]} Be7 {[%emt 0:00:01]} 7. Bb2 {[%emt 0:00:04]} a5 {[%emt 0:00:01]} 8. b5 {[%emt 0:00:05]} Nh6 {[%emt 0:00:05]} 9. Bd3 {[%emt 0:00:04]} Nd7 {[%emt 0:00:03]} 10. Nf3 {[%emt 0:00:06]} f6 {[%emt 0:00:09]} 11. O-O {[%emt 0:00:11]} Nf7 {[%emt 0:00:01]} 12. exf6 {[%emt 0:00:05]} Bxf6 {[%emt 0:00:01]} 13. Nc3 {[%emt 0:00:15]} Nc5 {[%emt 0:00:05]} 14. Re1 {[%emt 0:00:07]} O-O {[%emt 0:00:03]} 15. Rb1 {[%emt 0:00:07]} Qd6 {[%emt 0:00:05]} 16. Bf1 {[%emt 0:00:13]} a4 {[%emt 0:00:17]} 17. g3 {[%emt 0:00:16]} Bd7 {[%emt 0:00:08]} 18. Bg2 {[%emt 0:00:02]} Rac8 {[%emt 0:00:13]} 19. Nd2 {[%emt 0:00:24]} b6 {[%emt 0:00:20]} 20. Qe2 {[%emt 0:00:05]} Nb7 {[%emt 0:00:09]} 21. Nxa4 {[%emt 0:00:13]} Bxb2 {[%emt 0:00:07]} 22. Nxb2 {[%emt 0:00:05]} Rxc2 {[%emt 0:00:16]} 23. Qd3 {[%emt 0:00:02]} Rfc8 {[%emt 0:00:18]} 24. Na4 {[%emt 0:00:08]} R2c7 {[%emt 0:00:09]} 25. Qe3 {[%emt 0:00:13]} Nc5 {[%emt 0:00:03]} 26. Nxc5 {[%emt 0:00:04]} Qxc5 {[%emt 0:00:04]} 27. a4 {[%emt 0:00:12]} Qxe3 {[%emt 0:00:04]} 28. Rxe3 {[%emt 0:00:01]} Ra8 {[%emt 0:00:02]} 29. Ra3 {[%emt 0:00:05]} Nd6 {[%emt 0:00:05]} 30. Bf1 {[%emt 0:00:08]} Rca7 {[%emt 0:00:10]} 31. Rb4 {[%emt 0:00:16]} Nb7 {[%emt 0:00:04]} 32. Nb3 {[%emt 0:00:03]} Kf7 {[%emt 0:00:13]} 33. f4 {[%emt 0:00:01]} Ke7 {[%emt 0:00:02]} 34. Kf2 {[%emt 0:00:01]} Kd6 {[%emt 0:00:01]} 35. Ke3 {[%emt 0:00:02]} Nc5 {[%emt 0:00:04]} 36. Nxc5 {[%emt 0:00:01]} bxc5 {[%emt 0:00:04]} 37. Rb1 {[%emt 0:00:05]} Rxa4 {[%emt 0:00:02]} 38. Rxa4 {[%emt 0:00:05]} Rxa4 39. b6 {[%emt 0:00:01]} Ra3+ {[%emt 0:00:09]} 40. Kd2 {[%emt 0:00:02]} Ra8 {[%emt 0:00:01]} 41. Bd3 {[%emt 0:00:02]} g6 {[%emt 0:00:02]} 42. Kc3 {[%emt 0:00:02]} Rb8 {[%emt 0:00:03]} 43. h4 {[%emt 0:00:03]} Be8 {[%emt 0:00:09]} 44. g4 {[%emt 0:00:03]} e5 {[%emt 0:00:16]} 45. fxe5+ {[%emt 0:00:01]} Kxe5 {[%emt 0:00:01]} 46. g5 {[%emt 0:00:05]} Kd6 {[%emt 0:00:06]} 47. Ba6 {[%emt 0:00:02]} Bf7 {[%emt 0:00:05]} 48. b7 {[%emt 0:00:04]} d4+ {[%emt 0:00:01]} 49. Kd3 {[%emt 0:00:02]} Bd5 {[%emt 0:00:01]} 50. Rb6+ {[%emt 0:00:03]} Kc7 {[%emt 0:00:06]} 51. Rf6 {[%emt 0:00:02]} Bxb7 {[%emt 0:00:03]} 52. Rf7+ {[%emt 0:00:02]} Kb6 {[%emt 0:00:00]} 53. Bc4 {[%emt 0:00:04]} Ra8 {[%emt 0:00:02]} 54. Rxh7 {[%emt 0:00:01]} Ra3+ {[%emt 0:00:01]} 55. Kd2 {[%emt 0:00:01]} Rc3 {[%emt 0:00:01]} 56. Bd3 {[%emt 0:00:01]} c4 {[%emt 0:00:01]} 57. Bxg6 {[%emt 0:00:01]} Rh3 {[%emt 0:00:02]} 58. Bf5 {[%emt 0:00:02]} Rh2+ {[%emt 0:00:01]} 59. Kd1 {[%emt 0:00:01]} Bf3+ {[%emt 0:00:04]} 60. Ke1 {[%emt 0:00:00]} d3 {[%emt 0:00:02]} 61. Rd7 {[%emt 0:00:02]} Rxh4 {[%emt 0:00:04]} 62. g6 {[%emt 0:00:03]} Rh1+ {[%emt 0:00:08]} 63. Kf2 {[%emt 0:00:01]} Bc6 64. Rd6 {[%emt 0:00:02]} Rh2+ {[%emt 0:00:03]} 65. Ke3 {[%emt 0:00:02]} Rh5 {[%emt 0:00:01]} 66. Be4 {[%emt 0:00:02]} Re5 {[%emt 0:00:02]} 67. Rxc6+ Kb5 68. Rd6 {[%emt 0:00:04]} Kb4 {[%emt 0:00:03]} 69. g7 {[%emt 0:00:02]} Re8 {[%emt 0:00:01]} 70. Rg6 {[%emt 0:00:02]} Rg8 {[%emt 0:00:00]} 71. Bd5 {[%emt 0:00:03]} Re8+ {[%emt 0:00:01]} 72. Kd2 {[%emt 0:00:05]} Re2+ {[%emt 0:00:01]} 73. Kd1 {[%emt 0:00:00]} c3 {[%emt 0:00:01]} 74. Rg1 {[%emt 0:00:06]} c2+ {[%emt 0:00:02]} 75. Kc1 {[%emt 0:00:01]} Kc3 {[%emt 0:00:00]} 76. Rd1 d2+ 77. Rxd2 Re1+ 0-1

[Event "IMSA Blitz Women 2019"]
[Site "Hengshui"]
[Date "2019.05.17"]
[Round "4.1"]
[White "Bodnaruk, Anastasia"]
[Black "Paehtz, Elisabeth"]
[Result "0-1"]
[ECO "B23"]
[WhiteElo "2431"]
[BlackElo "2470"]
[Annotator "ChessBase"]
[PlyCount "90"]
[EventDate "2019.05.17"]
[EventType "blitz"]
[EventCountry "CHN"]
[SourceTitle "playchess.com"]
[Source "ChessBase"]
[SourceQuality "1"]
[TimeControl "180+2"]

1. e4 {[%emt 0:00:00]} c5 {[%emt 0:00:00]} 2. Nc3 {[%emt 0:00:00]} a6 {[%emt 0:00:00]} 3. g3 {[%emt 0:00:17]} b5 {[%emt 0:00:01]} 4. Bg2 {[%emt 0:00:00]} Bb7 {[%emt 0:00:00]} 5. d4 {[%emt 0:00:16]} cxd4 {[%emt 0:00:05]} 6. Qxd4 {[%emt 0:00:00]} Nc6 {[%emt 0:00:02]} 7. Qd2 {[%emt 0:00:07]} e6 {[%emt 0:00:03]} 8. b3 {[%emt 0:00:04]} Nf6 {[%emt 0:00:06]} 9. Bb2 {[%emt 0:00:02]} Bb4 {[%emt 0:00:08]} 10. a3 {[%emt 0:00:03]} Ba5 {[%emt 0:00:02]} 11. b4 {[%emt 0:00:18]} Bb6 {[%emt 0:00:03]} 12. Nge2 {[%emt 0:00:29]} Ne5 {[%emt 0:00:05]} 13. Bc1 {[%emt 0:00:23]} Nc4 {[%emt 0:00:03]} 14. Qd3 {[%emt 0:00:04]} Ng4 {[%emt 0:00:05]} 15. O-O {[%emt 0:00:05]} Qf6 {[%emt 0:00:07]} 16. Qf3 {[%emt 0:00:18]} Qxf3 {[%emt 0:00:20]} 17. Bxf3 {[%emt 0:00:01]} Nge5 {[%emt 0:00:01]} 18. Bg2 {[%emt 0:00:02]} Rc8 {[%emt 0:00:01]} 19. a4 {[%emt 0:00:18]} bxa4 {[%emt 0:00:09]} 20. Nxa4 {[%emt 0:00:01]} Ba7 {[%emt 0:00:02]} 21. h3 {[%emt 0:00:08]} d6 {[%emt 0:00:01]} 22. Rd1 {[%emt 0:00:10]} Ke7 {[%emt 0:00:03]} 23. Nd4 {[%emt 0:00:06]} Nb6 {[%emt 0:00:18]} 24. Nb2 {[%emt 0:00:11]} Nbc4 {[%emt 0:00:14]} 25. b5 {[%emt 0:00:09]} a5 {[%emt 0:00:19]} 26. Nxc4 {[%emt 0:00:02]} Nxc4 {[%emt 0:00:02]} 27. c3 {[%emt 0:00:03]} g6 {[%emt 0:00:11]} 28. Ra4 {[%emt 0:00:03]} e5 {[%emt 0:00:10]} 29. Nc2 {[%emt 0:00:10]} Bb6 {[%emt 0:00:02]} 30. Rd3 {[%emt 0:00:06]} f5 {[%emt 0:00:05]} 31. exf5 {[%emt 0:00:01]} Bxg2 {[%emt 0:00:02]} 32. f6+ {[%emt 0:00:01]} Kxf6 {[%emt 0:00:02]} 33. Kxg2 {[%emt 0:00:01]} Ke6 {[%emt 0:00:04]} 34. Ne3 {[%emt 0:00:01]} Bxe3 {[%emt 0:00:08]} 35. fxe3 {[%emt 0:00:01]} e4 {[%emt 0:00:07]} 36. Rd4 {[%emt 0:00:05]} d5 {[%emt 0:00:01]} 37. b6 {[%emt 0:00:03]} Rc6 {[%emt 0:00:06]} 38. b7 {[%emt 0:00:02]} Rb8 {[%emt 0:00:01]} 39. Rdxc4 {[%emt 0:00:03]} Rxc4 {[%emt 0:00:05]} 40. Rxa5 Rxb7 {[%emt 0:00:01]} 41. Ba3 {[%emt 0:00:03]} Rxc3 {[%emt 0:00:05]} 42. Ra6+ {[%emt 0:00:01]} Kf7 {[%emt 0:00:03]} 43. g4 {[%emt 0:00:04]} Rxe3 {[%emt 0:00:02]} 44. Bc5 {[%emt 0:00:02]} Rc3 {[%emt 0:00:06]} 45. Ra2 {[%emt 0:00:03]} Rxc5 {[%emt 0:00:02]} 0-1

[Event "IMSA Blitz Women 2019"]
[Site "Hengshui"]
[Date "2019.05.17"]
[Round "4.2"]
[White "Koneru, Humpy"]
[Black "Tan, Zhongyi"]
[Result "1-0"]
[ECO "D37"]
[WhiteElo "2553"]
[BlackElo "2513"]
[Annotator "ChessBase"]
[PlyCount "85"]
[EventDate "2019.05.17"]
[EventType "blitz"]
[EventCountry "CHN"]
[SourceTitle "playchess.com"]
[Source "ChessBase"]
[SourceQuality "1"]
[TimeControl "180+2"]

1. d4 {[%emt 0:00:00]} Nf6 {[%emt 0:00:00]} 2. Nf3 {[%emt 0:00:01]} d5 {[%emt 0:00:01]} 3. c4 {[%emt 0:00:05]} e6 {[%emt 0:00:01]} 4. Nc3 {[%emt 0:00:05]} dxc4 {[%emt 0:00:03]} 5. e4 {[%emt 0:00:02]} Bb4 {[%emt 0:00:01]} 6. Bg5 {[%emt 0:00:03]} c5 {[%emt 0:00:18]} 7. e5 {[%emt 0:00:09]} cxd4 {[%emt 0:00:20]} 8. Nxd4 {[%emt 0:00:02]} Qa5 {[%emt 0:00:11]} 9. exf6 {[%emt 0:00:02]} Bxc3+ {[%emt 0:00:04]} 10. bxc3 {[%emt 0:00:01]} Qxg5 {[%emt 0:00:01]} 11. fxg7 {[%emt 0:00:02]} Qxg7 {[%emt 0:00:02]} 12. Qd2 {[%emt 0:00:01]} Bd7 {[%emt 0:00:19]} 13. Bxc4 {[%emt 0:00:13]} Nc6 {[%emt 0:00:11]} 14. O-O {[%emt 0:00:14]} Nxd4 {[%emt 0:00:05]} 15. cxd4 {[%emt 0:00:07]} Rc8 {[%emt 0:00:06]} 16. Rac1 {[%emt 0:00:24]} Rg8 {[%emt 0:00:21]} 17. g3 {[%emt 0:00:08]} Qg5 {[%emt 0:00:06]} 18. f4 {[%emt 0:00:22]} Qf5 {[%emt 0:00:19]} 19. d5 {[%emt 0:00:15]} h5 {[%emt 0:00:16]} 20. dxe6 {[%emt 0:00:13]} fxe6 {[%emt 0:00:01]} 21. Rfd1 {[%emt 0:00:19]} Rg7 {[%emt 0:00:04]} 22. Bb5 {[%emt 0:00:36]} Qxb5 {[%emt 0:00:10]} 23. Rxc8+ {[%emt 0:00:02]} Bxc8 {[%emt 0:00:01]} 24. Qd8+ {[%emt 0:00:00]} Kf7 {[%emt 0:00:02]} 25. Qxc8 {[%emt 0:00:02]} Qb6+ {[%emt 0:00:09]} 26. Kg2 {[%emt 0:00:07]} Kf6 {[%emt 0:00:12]} 27. Qc3+ {[%emt 0:00:06]} Kg6 {[%emt 0:00:02]} 28. Qe5 {[%emt 0:00:05]} Qc6+ {[%emt 0:00:04]} 29. Kh3 {[%emt 0:00:02]} Kh6 {[%emt 0:00:15]} 30. Rd6 {[%emt 0:00:01]} Qc8 {[%emt 0:00:04]} 31. Rxe6+ {[%emt 0:00:03]} Kh7 {[%emt 0:00:03]} 32. Qe4+ {[%emt 0:00:06]} Kg8 {[%emt 0:00:05]} 33. f5 {[%emt 0:00:01]} Qc1 {[%emt 0:00:03]} 34. Re8+ {[%emt 0:00:02]} Kh7 {[%emt 0:00:02]} 35. f6+ {[%emt 0:00:01]} Kh6 {[%emt 0:00:03]} 36. fxg7 {[%emt 0:00:02]} Qf1+ {[%emt 0:00:01]} 37. Kh4 {[%emt 0:00:02]} Qf6+ {[%emt 0:00:02]} 38. Kh3 {[%emt 0:00:01]} Qf1+ {[%emt 0:00:01]} 39. Qg2 {[%emt 0:00:02]} Qf5+ {[%emt 0:00:02]} 40. g4 {[%emt 0:00:00]} Qd3+ {[%emt 0:00:05]} 41. Qg3 {[%emt 0:00:02]} Qf1+ {[%emt 0:00:01]} 42. Kh4 {[%emt 0:00:02]} Qf6+ {[%emt 0:00:03]} 43. g5+ {[%emt 0:00:01]} 1-0

[Event "IMSA Blitz Women 2019"]
[Site "Hengshui"]
[Date "2019.05.17"]
[Round "4.2"]
[White "Khotenashvili, Bela"]
[Black "Muzychuk, Mariya"]
[Result "1-0"]
[ECO "A45"]
[WhiteElo "2476"]
[BlackElo "2563"]
[Annotator "ChessBase"]
[PlyCount "73"]
[EventDate "2019.05.17"]
[EventType "blitz"]
[EventCountry "CHN"]
[SourceTitle "playchess.com"]
[Source "ChessBase"]
[SourceQuality "1"]
[TimeControl "180+2"]

1. d4 Nf6 {[%emt 0:00:00]} 2. Nc3 {[%emt 0:00:00]} d5 {[%emt 0:00:00]} 3. Bf4 {[%emt 0:00:00]} Bf5 {[%emt 0:00:03]} 4. e3 {[%emt 0:00:02]} e6 {[%emt 0:00:01]} 5. Nf3 {[%emt 0:00:12]} Bd6 {[%emt 0:00:02]} 6. Ne5 {[%emt 0:00:04]} O-O {[%emt 0:00:13]} 7. h3 {[%emt 0:00:09]} a6 {[%emt 0:00:10]} 8. g4 {[%emt 0:00:07]} Bg6 {[%emt 0:00:02]} 9. h4 {[%emt 0:00:03]} h5 {[%emt 0:00:24]} 10. g5 {[%emt 0:00:05]} Ne4 {[%emt 0:00:09]} 11. Be2 {[%emt 0:00:21]} Nxc3 {[%emt 0:00:17]} 12. bxc3 {[%emt 0:00:01]} Be4 {[%emt 0:00:01]} 13. Rg1 {[%emt 0:00:10]} g6 {[%emt 0:00:00]} 14. Bxh5 {[%emt 0:00:38]} Nd7 {[%emt 0:00:31]} 15. Bf3 {[%emt 0:00:19]} c5 {[%emt 0:00:09]} 16. Bxe4 {[%emt 0:00:07]} dxe4 {[%emt 0:00:01]} 17. Nxg6 {[%emt 0:00:09]} fxg6 {[%emt 0:00:10]} 18. Bxd6 {[%emt 0:00:00]} Rf3 {[%emt 0:00:01]} 19. dxc5 {[%emt 0:00:07]} Qe8 {[%emt 0:00:22]} 20. Qd4 {[%emt 0:00:13]} Qf7 {[%emt 0:00:01]} 21. Rg2 {[%emt 0:00:07]} Rh3 {[%emt 0:00:05]} 22. O-O-O {[%emt 0:00:14]} Rxh4 {[%emt 0:00:02]} 23. Bg3 {[%emt 0:00:19]} Rh7 {[%emt 0:00:00]} 24. Rh2 {[%emt 0:00:11]} Rxh2 {[%emt 0:00:06]} 25. Bxh2 {[%emt 0:00:01]} Nf8 {[%emt 0:00:05]} 26. Bf4 {[%emt 0:00:05]} Rc8 {[%emt 0:00:02]} 27. Rh1 {[%emt 0:00:05]} Nh7 {[%emt 0:00:00]} 28. Qxe4 {[%emt 0:00:02]} Rxc5 {[%emt 0:00:02]} 29. Qd4 {[%emt 0:00:01]} Rd5 {[%emt 0:00:03]} 30. Qc4 Qd7 {[%emt 0:00:02]} 31. e4 {[%emt 0:00:05]} Ra5 {[%emt 0:00:07]} 32. Rd1 {[%emt 0:00:01]} Qe7 {[%emt 0:00:02]} 33. Qc8+ {[%emt 0:00:01]} Nf8 {[%emt 0:00:03]} 34. Bd6 {[%emt 0:00:01]} Qf7 {[%emt 0:00:02]} 35. Bxf8 {[%emt 0:00:03]} Qf4+ {[%emt 0:00:01]} 36. Kb1 {[%emt 0:00:02]} Rb5+ {[%emt 0:00:01]} 37. Bb4+ {[%emt 0:00:01]} 1-0

[Event "IMSA Blitz Women 2019"]
[Site "Hengshui"]
[Date "2019.05.17"]
[Round "5.1"]
[White "Koneru, Humpy"]
[Black "Dzagnidze, Nana"]
[Result "1-0"]
[ECO "D37"]
[WhiteElo "2553"]
[BlackElo "2510"]
[Annotator "ChessBase"]
[PlyCount "49"]
[EventDate "2019.05.17"]
[EventType "blitz"]
[EventCountry "CHN"]
[SourceTitle "playchess.com"]
[Source "ChessBase"]
[SourceQuality "1"]
[TimeControl "180+2"]

1. d4 {[%emt 0:00:00]} Nf6 {[%emt 0:00:00]} 2. c4 {[%emt 0:00:04]} e6 {[%emt 0:00:01]} 3. Nf3 {[%emt 0:00:06]} d5 {[%emt 0:00:01]} 4. Nc3 {[%emt 0:00:01]} dxc4 {[%emt 0:00:07]} 5. e4 {[%emt 0:00:02]} Bb4 {[%emt 0:00:02]} 6. Bg5 {[%emt 0:00:02]} c5 {[%emt 0:00:02]} 7. e5 {[%emt 0:00:03]} cxd4 {[%emt 0:00:02]} 8. Nxd4 {[%emt 0:00:03]} Qa5 {[%emt 0:00:12]} 9. exf6 {[%emt 0:00:02]} Bxc3+ {[%emt 0:00:02]} 10. bxc3 {[%emt 0:00:01]} Qxg5 {[%emt 0:00:02]} 11. fxg7 {[%emt 0:00:02]} Qxg7 {[%emt 0:00:03]} 12. Qd2 {[%emt 0:00:01]} O-O {[%emt 0:00:04]} 13. Bxc4 {[%emt 0:00:02]} Nd7 {[%emt 0:00:01]} 14. O-O {[%emt 0:00:04]} b6 {[%emt 0:00:35]} 15. Rae1 {[%emt 0:00:41]} Bb7 {[%emt 0:00:14]} 16. f4 {[%emt 0:00:10]} Kh8 {[%emt 0:00:29]} 17. Re3 {[%emt 0:00:27]} Nc5 {[%emt 0:00:10]} 18. f5 {[%emt 0:00:29]} Rg8 {[%emt 0:00:05]} 19. g3 {[%emt 0:00:21]} e5 {[%emt 0:00:18]} 20. f6 {[%emt 0:00:11]} Qh6 {[%emt 0:00:08]} 21. Nf5 {[%emt 0:00:14]} Qh5 {[%emt 0:00:36]} 22. Rxe5 {[%emt 0:00:25]} Rad8 {[%emt 0:00:21]} 23. Qe3 {[%emt 0:00:04]} Rg5 {[%emt 0:00:08]} 24. Re8+ {[%emt 0:00:05]} Rxe8 25. Qxe8+ 1-0

[Event "IMSA Blitz Women 2019"]
[Site "Hengshui"]
[Date "2019.05.17"]
[Round "5.1"]
[White "Harika, Dronavalli"]
[Black "Lei, Tingjie"]
[Result "1-0"]
[ECO "C51"]
[WhiteElo "2492"]
[BlackElo "2507"]
[Annotator "ChessBase"]
[PlyCount "101"]
[EventDate "2019.05.17"]
[EventType "blitz"]
[EventCountry "CHN"]
[SourceTitle "playchess.com"]
[Source "ChessBase"]
[SourceQuality "1"]
[TimeControl "180+2"]

1. e4 {[%emt 0:00:00]} e5 {[%emt 0:00:01]} 2. Nf3 {[%emt 0:00:01]} Nc6 {[%emt 0:00:01]} 3. Bc4 {[%emt 0:00:01]} Bc5 {[%emt 0:00:01]} 4. b4 {[%emt 0:00:01]} Bxb4 {[%emt 0:00:12]} 5. c3 {[%emt 0:00:00]} Be7 {[%emt 0:00:01]} 6. d4 {[%emt 0:00:05]} d6 {[%emt 0:00:02]} 7. O-O {[%emt 0:00:03]} Nf6 {[%emt 0:00:07]} 8. Re1 {[%emt 0:00:09]} O-O {[%emt 0:00:03]} 9. h3 {[%emt 0:00:03]} h6 {[%emt 0:00:08]} 10. Bd3 {[%emt 0:00:13]} Re8 {[%emt 0:00:08]} 11. Nbd2 {[%emt 0:00:02]} Bf8 {[%emt 0:00:03]} 12. Nf1 {[%emt 0:00:02]} g6 {[%emt 0:00:04]} 13. Ng3 {[%emt 0:00:19]} Bg7 {[%emt 0:00:03]} 14. Qb3 {[%emt 0:00:11]} Qe7 {[%emt 0:00:26]} 15. a4 {[%emt 0:00:29]} Rb8 {[%emt 0:00:02]} 16. Ba3 {[%emt 0:00:06]} Bd7 {[%emt 0:00:04]} 17. Bb5 {[%emt 0:00:12]} a6 {[%emt 0:00:04]} 18. Bxc6 {[%emt 0:00:01]} bxc6 {[%emt 0:00:05]} 19. Qc4 {[%emt 0:00:01]} exd4 {[%emt 0:00:14]} 20. cxd4 {[%emt 0:00:02]} Qe6 {[%emt 0:00:39]} 21. Qxa6 {[%emt 0:00:06]} Ra8 {[%emt 0:00:01]} 22. Qd3 {[%emt 0:00:46]} Rxa4 {[%emt 0:00:02]} 23. Bb2 {[%emt 0:00:05]} Qc4 {[%emt 0:00:08]} 24. Qxc4 {[%emt 0:00:04]} Rxc4 {[%emt 0:00:01]} 25. Ra7 {[%emt 0:00:01]} Rc2 {[%emt 0:00:06]} 26. Bc1 {[%emt 0:00:19]} Rc8 {[%emt 0:00:02]} 27. Bd2 {[%emt 0:00:08]} d5 {[%emt 0:00:42]} 28. e5 {[%emt 0:00:03]} Ne8 {[%emt 0:00:05]} 29. Bb4 {[%emt 0:00:07]} Rc4 {[%emt 0:00:02]} 30. Bc5 {[%emt 0:00:04]} Bf8 {[%emt 0:00:04]} 31. Bxf8 {[%emt 0:00:02]} Kxf8 {[%emt 0:00:01]} 32. Ne2 {[%emt 0:00:04]} c5 {[%emt 0:00:06]} 33. dxc5 {[%emt 0:00:06]} Rxc5 {[%emt 0:00:01]} 34. Nf4 {[%emt 0:00:00]} Ng7 {[%emt 0:00:02]} 35. Rb1 {[%emt 0:00:04]} Ne6 {[%emt 0:00:07]} 36. Nxe6+ {[%emt 0:00:01]} Bxe6 {[%emt 0:00:02]} 37. Nd4 {[%emt 0:00:02]} Rc4 {[%emt 0:00:01]} 38. Rd1 {[%emt 0:00:03]} c5 {[%emt 0:00:04]} 39. Nxe6+ {[%emt 0:00:02]} fxe6 {[%emt 0:00:01]} 40. Rb1 {[%emt 0:00:00]} Rb4 {[%emt 0:00:00]} 41. Rba1 {[%emt 0:00:05]} Rcb8 {[%emt 0:00:05]} 42. R1a6 {[%emt 0:00:04]} R8b6 {[%emt 0:00:02]} 43. Ra3 {[%emt 0:00:02]} c4 {[%emt 0:00:03]} 44. Rf3+ {[%emt 0:00:01]} Ke8 {[%emt 0:00:01]} 45. Rff7 {[%emt 0:00:00]} Rb1+ {[%emt 0:00:08]} 46. Kh2 {[%emt 0:00:01]} Ra6 {[%emt 0:00:02]} 47. Rac7 {[%emt 0:00:02]} Rc6 {[%emt 0:00:01]} 48. Ra7 {[%emt 0:00:02]} Ra6 {[%emt 0:00:01]} 49. Rae7+ {[%emt 0:00:01]} Kd8 {[%emt 0:00:01]} 50. Rh7 {[%emt 0:00:01]} Rc6 {[%emt 0:00:06]} 51. Reg7 {[%emt 0:00:03]} 1-0

[Event "IMSA Blitz Women 2019"]
[Site "Hengshui"]
[Date "2019.05.17"]
[Round "5.1"]
[White "Khotenashvili, Bela"]
[Black "Gunina, Valentina"]
[Result "0-1"]
[ECO "A06"]
[WhiteElo "2476"]
[BlackElo "2506"]
[Annotator "RC"]
[PlyCount "108"]
[EventDate "2019.05.17"]
[EventType "blitz"]
[EventCountry "CHN"]
[SourceTitle "playchess.com"]
[Source "ChessBase"]
[SourceQuality "1"]
[TimeControl "180+2"]

1. Nf3 {[%emt 0:00:00]} d5 {[%emt 0:00:00]} 2. g3 {[%emt 0:00:00]} c6 {[%emt 0:00:00]} 3. Bg2 {[%emt 0:00:02]} Bg4 {[%emt 0:00:02]} 4. O-O {[%emt 0:00:12]} Nd7 {[%emt 0:00:01]} 5. d3 {[%emt 0:00:08]} Ngf6 {[%emt 0:00:02]} 6. h3 {[%emt 0:00:12]} Bxf3 {[%emt 0:00:02]} 7. Bxf3 {[%emt 0:00:01]} e5 {[%emt 0:00:01]} 8. Bg2 {[%emt 0:00:02]} Bc5 {[%emt 0:00:01]} 9. Nd2 {[%emt 0:00:12]} O-O {[%emt 0:00:03]} 10. Nb3 {[%emt 0:00:09]} Bd6 {[%emt 0:00:02]} 11. c4 {[%emt 0:00:18]} dxc4 {[%emt 0:00:10]} 12. dxc4 {[%emt 0:00:01]} Qe7 {[%emt 0:00:01]} 13. Qc2 {[%emt 0:00:14]} Rfd8 {[%emt 0:00:03]} 14. Be3 {[%emt 0:00:05]} Nc5 {[%emt 0:00:06]} 15. Rfd1 {[%emt 0:00:02]} Ne6 {[%emt 0:00:09]} 16. Rd2 {[%emt 0:00:23]} c5 {[%emt 0:00:02]} 17. Re1 {[%emt 0:00:26]} Nd4 {[%emt 0:00:11]} 18. Bxd4 {[%emt 0:00:02]} cxd4 {[%emt 0:00:03]} 19. e3 {[%emt 0:00:02]} Bb4 {[%emt 0:00:06]} 20. exd4 {[%emt 0:00:03]} Bxd2 {[%emt 0:00:01]} 21. Qxd2 {[%emt 0:00:01]} Rac8 {[%emt 0:00:21]} 22. Qe2 {[%emt 0:00:09]} e4 {[%emt 0:00:07]} 23. d5 {[%emt 0:00:11]} Qb4 {[%emt 0:00:06]} 24. Rc1 {[%emt 0:00:27]} a5 {[%emt 0:00:03]} 25. Rc2 {[%emt 0:00:13]} b5 {[%emt 0:00:24]} 26. cxb5 {[%emt 0:00:07]} Rxc2 {[%emt 0:00:01]} 27. Qxc2 {[%emt 0:00:01]} Qxb5 {[%emt 0:00:01]} 28. Bxe4 {[%emt 0:00:05]} Nxe4 {[%emt 0:00:11]} 29. Qxe4 {[%emt 0:00:01]} a4 {[%emt 0:00:14]} 30. Nd4 {[%emt 0:00:08]} Qxd5 {[%emt 0:00:06]} 31. Qxd5 {[%emt 0:00:01]} Rxd5 {[%emt 0:00:01]} 32. Ne2 {[%emt 0:00:03]} Rc5 {[%emt 0:00:16]} 33. a3 {[%emt 0:00:00]} Rc2 {[%emt 0:00:06]} 34. Nc3 {[%emt 0:00:01]} Rxb2 {[%emt 0:00:01]} 35. Nxa4 {[%emt 0:00:01]} Ra2 {[%emt 0:00:01]} 36. Nc5 {[%emt 0:00:01]} Rxa3 {[%emt 0:00:01]} 37. Ne4 {[%emt 0:00:03]} h6 {[%emt 0:00:04]} 38. h4 {[%emt 0:00:01]} Kf8 {[%emt 0:00:03]} 39. Kg2 {[%emt 0:00:01]} Ke7 {[%emt 0:00:01]} 40. Nd2 {[%emt 0:00:02]} Ra2 {[%emt 0:00:02]} 41. Nf3 {[%emt 0:00:01]} Kd6 {[%emt 0:00:05]} 42. Nd4 {[%emt 0:00:02]} Ke5 {[%emt 0:00:06]} 43. Nc6+ {[%emt 0:00:03]} Ke4 {[%emt 0:00:05]} 44. Nd8 {[%emt 0:00:08]} Ra7 {[%emt 0:00:01]} 45. Nc6 {[%emt 0:00:01]} Rc7 {[%emt 0:00:03]} 46. Nb4 {[%emt 0:00:00]} Rc4 {[%emt 0:00:05]} 47. Na6 {[%emt 0:00:01]} Kd3 {[%emt 0:00:02]} 48. Nb8 {[%emt 0:00:03]} Rc7 {[%emt 0:00:25]} 49. Na6 {[%emt 0:00:01]} Rc1 {[%emt 0:00:06]} 50. Nb4+ {[%emt 0:00:02]} Ke4 {[%emt 0:00:06]} 51. Na6 {[%emt 0:00:05]} Rc4 {[%emt 0:00:03]} 52. Nb8 {[%emt 0:00:03]} Kd5 {[%emt 0:00:05]} 53. Nd7 {[%emt 0:00:02]} Kd6 {[%emt 0:00:04]} 54. Nb6 {[%emt 0:00:01]} Rb4 {[%emt 0:00:03]} 0-1